bitfinex/quotes_ETHUSD_20230702
["timestamp","ask_amount","ask_price","bid_price","bid_amount"]
[1688265473561,13.01012,1921.6,1921.5,0.00331404]
[1688265479080,14.744941,1921.6,1921.5,0.00331404]
[1688265485435,14.744941,1921.6,1921.2,1.356]
[1688265485634,13.01012,1921.6,1921.2,1.356]
[1688265486437,13.01012,1921.6,1921.3,0.00333168]
[1688265487438,4.1839,1921.5,1920.9,2.9207]
[1688265487638,15.61424,1921.4,1920.9,2.9207]
[1688265487951,1.8075,1921.3,1920.9,2.9207]
[1688265488153,1.8075,1921.3,1921.0,1.357]
[1688265488154,13.01282,1921.2,1921.0,1.357]
[1688265488684,13.01282,1921.2,1921.0,1.36035815]
[1688265491902,13.01282,1921.2,1921.0,0.00335815]
[1688265495966,0.41236847,1921.9,1921.1,9.52252184]
[1688265496165,5.20439,1921.5,1921.2,0.95225218]
[1688265496411,5.20439,1921.5,1921.3,7.90871818]
[1688265497187,10.40877,1921.5,1921.3,7.90871818]
[1688265497502,10.40877,1921.5,1921.4,0.00332286]
[1688265497798,13.0109,1921.5,1921.4,1.35932286]
[1688265500274,13.0109,1921.5,1921.4,0.00332286]
[1688265501469,13.0109,1921.5,1921.2,1.357]
[1688265502694,13.0109,1921.5,1921.3,0.00333168]
[1688265504179,10.40877,1921.5,1921.3,0.00333168]
[1688265506016,13.0109,1921.5,1921.3,0.00333168]
[1688265513302,13.0109,1921.5,1921.3,1.18201957]
[1688265515027,13.0109,1921.5,1921.3,0.00333168]
[1688265543158,10.40663,1921.9,1921.5,10.40833]
[1688265543362,10.40663,1921.9,1921.6,2.68752184]
[1688265543664,5.20257,1922.2,1921.8,10.40684]
[1688265543841,9.38227,1922.2,1921.8,9.19180884]
[1688265544042,17.18603,1922.2,1921.8,9.19180884]
[1688265546734,17.18603,1922.2,1921.8,3.98838884]
[1688265546932,17.18603,1922.2,1921.8,5.36192089]
[1688265547569,17.18603,1922.2,1921.9,0.00327876]
[1688265548479,17.18603,1922.2,1921.8,5.36192089]
[1688265548640,17.18603,1922.2,1921.9,0.53619209]
[1688265549551,17.18603,1922.2,1922.0,0.00326995]
[1688265550464,17.18603,1922.2,1921.8,0.01653205]
[1688265551445,17.18603,1922.2,1921.9,0.00327876]
[1688265552386,17.18326635,1922.2,1921.9,0.00327876]
[1688265552546,17.18326635,1922.2,1921.8,0.01653205]
[1688265553555,17.18326635,1922.2,1921.9,0.00327876]
[1688265554547,17.18326635,1922.2,1921.8,0.01653205]
[1688265555583,17.18326635,1922.2,1921.9,0.00327878]
[1688265555779,19.16170198,1922.2,1921.9,0.00327878]
[1688265556449,19.16170198,1922.2,1921.8,0.01653205]
[1688265557452,19.16170198,1922.2,1921.9,0.00327878]
[1688265558555,19.16170198,1922.2,1921.8,0.01653205]
[1688265559484,19.16170198,1922.2,1921.9,0.00327878]
[1688265559989,14.58208635,1922.2,1921.9,0.00327878]
[1688265560186,5.19980635,1922.2,1921.9,2.69080062]
[1688265560354,10.40238635,1922.2,1921.9,7.89395062]
[1688265560797,13.00356635,1922.2,1921.9,2.69080062]
[1688265560948,14.80116635,1922.2,1921.9,2.69080062]
[1688265565189,14.80116635,1922.2,1921.9,3.00241706]
[1688265566484,1.7976,1922.2,1921.9,3.00241706]
[1688265566789,14.80373,1922.2,1921.9,3.00241706]
[1688265573693,5.20237,1922.2,1922.0,2.68752184]
[1688265573989,13.00613,1922.2,1922.1,0.26875218]
[1688265574195,13.00613,1922.2,1922.0,2.68752184]
[1688265574557,13.00613,1922.2,1922.1,0.00326115]
[1688265576274,7.07593381,1922.7,1922.2,7.478]
[1688265576275,0.1,1922.7,1922.2,7.478]
[1688265576581,0.1,1922.7,1922.3,3.43532184]
[1688265576779,10.50231,1922.7,1922.4,5.478]
[1688265577077,5.30107,1922.7,1922.5,13.10716786]
[1688265577276,0.1,1922.7,1922.6,1.357]
[1688265577482,0.1,1922.7,1922.6,4.45384371]
[1688265577777,0.1,1922.7,1922.6,9.65512371]
[1688265580300,0.1,1922.7,1922.6,14.85640371]
[1688265581639,0.1,1922.7,1922.6,13.49940371]
[1688265582127,0.1,1922.7,1922.6,3.09684371]
[1688265582300,10.50202,1922.7,1922.6,3.09684371]
[1688265585826,5.30101,1922.7,1922.6,3.09684371]
[1688265586029,10.50202,1922.7,1922.6,3.09684371]
[1688265586200,5.30101,1922.7,1922.6,2.69073892]
[1688265587929,5.30101,1922.7,1922.6,0.00321708]
[1688265588131,13.10252,1922.7,1922.6,0.00321708]
[1688265588641,13.10252,1922.7,1922.2,2.0]
[1688265588799,14.82222,1922.7,1922.2,4.68752184]
[1688265589141,12.22172,1922.7,1922.3,2.68752184]
[1688265589464,14.82222,1922.7,1922.3,7.88955184]
[1688265589627,14.82222,1922.7,1922.4,0.00335533]
[1688265590504,14.82222,1922.7,1922.4,2.69087717]
[1688265590699,10.50202,1922.7,1922.5,2.68752184]
[1688265590902,10.50202,1922.7,1922.5,3.47679156]
[1688265591501,10.50202,1922.7,1922.6,0.0033377]
[1688265592211,5.30101,1922.7,1922.6,2.69085954]
[1688265592404,0.1,1922.7,1922.6,2.69085954]
[1688265592603,0.1,1922.7,1922.6,4.10680447]
[1688265593016,5.30101,1922.7,1922.6,4.10680447]
[1688265593231,5.30101,1922.7,1922.6,2.69085954]
[1688265593232,10.50202,1922.7,1922.6,2.69085954]
[1688265593555,13.10252,1922.7,1922.6,2.69085954]
[1688265596502,10.50202,1922.7,1922.6,2.69085954]
[1688265597244,0.1,1922.7,1922.6,13.09341954]
[1688265597398,0.1,1922.7,1922.6,15.28956247]
[1688265597601,0.1,1922.7,1922.6,20.76756247]
[1688265597837,0.1,1922.7,1922.6,21.24756247]
[1688265598414,0.1,1922.7,1922.6,16.04628247]
[1688265598617,0.1,1922.7,1922.6,10.84500247]
[1688265599162,0.1,1922.7,1922.6,5.36700247]
[1688265599446,5.30101,1922.7,1922.6,10.56828247]
[1688265600025,5.30101,1922.7,1922.6,5.36700247]
[1688265600227,0.1,1922.7,1922.6,10.84500247]
[1688265600426,0.1,1922.7,1922.6,16.04628247]
[1688265601047,2.70025,1922.9,1922.8,11.102]
[1688265601048,0.1,1922.9,1922.8,11.102]
[1688265601263,0.1,1923.1,1923.0,9.335]
[1688265601456,0.1,1923.3,1923.2,7.478]
[1688265601749,0.1,1923.3,1923.2,22.47097004]
[1688265601926,0.1,1923.3,1923.2,24.47097004]
[1688265602252,0.1,1923.3,1923.2,25.96804722]
[1688265603250,0.1,1923.3,1923.2,26.46804722]
[1688265603454,0.1,1923.4,1923.3,0.01651915]
[1688265603613,0.1,1923.4,1923.3,26.01751099]
[1688265603822,0.1,1923.4,1923.3,18.21843099]
[1688265604048,0.1,1923.4,1923.3,13.80831071]
[1688265604227,0.1,1923.4,1923.3,23.60739071]
[1688265604428,0.1,1923.4,1923.3,28.80678071]
[1688265605652,0.1,1923.4,1923.3,28.80993615]
[1688265606064,0.17177618,1923.5,1923.4,10.602]
[1688265606224,0.17177618,1923.5,1923.4,31.96346477]
[1688265606426,0.17177618,1923.5,1923.4,28.83946477]
[1688265606744,1.4731857,1923.7,1923.6,5.478]
[1688265606955,1.4731857,1923.7,1923.6,26.64197184]
[1688265607545,1.4731857,1923.7,1923.6,26.64510087]
[1688265607746,1.4731857,1923.7,1923.6,27.80084332]
[1688265610269,0.05840699,1924.2,1924.1,13.102]
[1688265610456,0.05840699,1924.5,1924.4,9.978]
[1688265610643,0.05840699,1924.5,1924.4,28.98287004]
[1688265610848,0.05840699,1924.5,1924.4,29.96287004]
[1688265611045,0.05840699,1924.5,1924.4,28.15367322]
[1688265611245,0.1,1924.6,1924.4,28.15367322]
[1688265611448,0.1,1924.6,1924.5,11.16552184]
[1688265611638,0.1,1924.6,1924.5,16.84167184]
[1688265612571,0.1,1924.6,1924.5,18.19867184]
[1688265612746,0.1,1924.6,1924.5,18.98794156]
[1688265615270,0.1,1924.6,1924.5,13.79179156]
[1688265615479,0.1,1924.6,1924.5,24.18714142]
[1688265617492,0.1,1924.6,1924.5,28.18714142]
[1688265617990,0.1,1924.6,1924.5,30.78521142]
[1688265622387,0.1,1924.6,1924.5,28.18714142]
[1688265624711,0.1,1924.6,1924.5,30.78521142]
[1688265626411,0.1,1924.6,1924.5,41.17721142]
[1688265629792,0.1,1924.6,1924.5,39.82021142]
[1688265632501,0.1,1924.6,1924.5,39.82231682]
[1688265633412,0.05,1924.6,1924.5,39.82231682]
[1688265638632,0.05,1924.6,1924.5,22.83194682]
[1688265638928,10.44176,1924.6,1924.5,13.0846771]
[1688265639220,5.24588,1924.6,1924.5,13.0846771]
[1688265639624,10.44176,1924.6,1924.5,13.0846771]
[1688265639795,5.24588,1924.6,1924.5,13.0846771]
[1688265642390,5.24588,1924.6,1924.5,21.38117751]
[1688265642391,0.05,1924.6,1924.5,21.38117751]
[1688265642715,0.05,1924.6,1924.5,27.05732751]
[1688265645592,0.05,1924.6,1924.5,32.25347751]
[1688265650029,0.05,1924.6,1924.5,27.05732751]
[1688265650228,0.05,1924.6,1924.5,21.86117751]
[1688265650447,0.05,1924.6,1924.5,27.05732751]
[1688265651604,0.05,1924.6,1924.5,32.25347751]
[1688265653033,0.05,1924.6,1924.5,27.05732751]
[1688265653427,0.05,1924.6,1924.5,21.86117751]
[1688265655059,0.05,1924.6,1924.5,27.05732751]
[1688265655261,0.05,1924.6,1924.5,21.86117751]
[1688265655469,5.24588,1924.6,1924.5,19.0426771]
[1688265656732,0.05,1924.6,1924.5,19.0426771]
[1688265657670,0.05,1924.6,1924.5,13.0846771]
[1688265657875,5.24588,1924.6,1924.5,13.0846771]
[1688265662236,5.24588,1924.6,1924.5,10.39715526]
[1688265662237,6.30495976,1924.6,1924.5,10.39715526]
[1688265662446,14.09877976,1924.6,1924.5,10.39715526]
[1688265662633,14.09877976,1924.6,1924.5,13.0846771]
[1688265662839,5.24588,1924.6,1924.5,13.0846771]
[1688265663627,10.44176,1924.6,1924.5,13.0846771]
[1688265664429,13.0397,1924.6,1924.5,13.0846771]
[1688265666529,5.24588,1924.6,1924.5,13.10118594]
[1688265666734,10.44176,1924.6,1924.5,13.58118594]
[1688265669134,13.0397,1924.6,1924.5,13.5646771]
[1688265672839,12.9897,1924.6,1924.5,13.5646771]
[1688265680352,12.9897,1924.6,1924.5,13.0846771]
[1688265683488,14.3467,1924.6,1924.5,13.0846771]
[1688265683701,12.9897,1924.6,1924.5,13.0846771]
[1688265683990,14.3357,1924.6,1924.5,13.0846771]
[1688265685156,16.04398376,1924.6,1924.5,10.39715526]
[1688265688497,14.3357,1924.6,1924.5,13.0846771]
[1688265695285,12.9897,1924.6,1924.5,13.0846771]
[1688265696777,12.9897,1924.6,1924.5,10.39715526]
[1688265714335,12.9897,1924.6,1924.5,0.00515526]
[1688265714501,14.56338476,1924.6,1924.5,0.00515526]
[1688265714707,14.56338476,1924.6,1924.2,0.42939985]
[1688265714926,12.9897,1924.6,1923.8,2.0]
[1688265715125,12.9897,1924.6,1923.9,2.68752184]
[1688265715126,1.357,1924.4,1923.9,2.68752184]
[1688265715434,15.59046,1924.3,1923.9,2.68752184]
[1688265715602,15.59046,1924.3,1924.0,0.00469318]
[1688265715998,17.47586,1924.3,1924.0,0.00469318]
[1688265716238,1.747586,1924.2,1924.0,0.00469318]
[1688265716444,12.99307,1924.1,1924.0,0.00469318]
[1688265721129,5.19723,1924.1,1924.0,2.69221502]
[1688265721329,10.39446,1924.1,1924.0,2.69221502]
[1688265722931,12.99307,1924.1,1924.0,2.69221502]
[1688265724521,5.19723,1924.1,1924.0,2.96143652]
[1688265724721,5.19723,1924.1,1924.0,2.97794965]
[1688265726213,10.39446,1924.1,1924.0,2.97794965]
[1688265729422,12.99307,1924.1,1924.0,2.70872815]
[1688265733560,12.99307,1924.1,1924.0,3.13327866]
[1688265734756,12.99307,1924.1,1924.0,3.11676553]
[1688265745063,10.39446,1924.1,1924.0,4.47276553]
[1688265745269,12.99307,1924.1,1924.0,3.56404208]
[1688265748467,12.99307,1924.1,1924.0,3.11676553]
[1688265762850,4.1699,1924.3,1924.0,3.11676553]
[1688265763070,4.1699,1924.3,1924.1,2.68752184]
[1688265763377,12.9925,1924.2,1924.1,2.68752184]
[1688265767686,12.9925,1924.2,1924.1,2.69220612]
[1688265769489,14.968586,1924.2,1924.1,0.00468428]
[1688265769667,20.165546,1924.2,1924.1,0.00468428]
[1688265770563,20.165546,1924.2,1923.8,0.01651486]
[1688265770768,20.165546,1924.2,1923.9,2.68752184]
[1688265771707,20.165546,1924.2,1924.0,0.00469318]
[1688265776065,18.18946,1924.2,1924.0,0.00469318]
[1688265782625,12.9925,1924.2,1924.0,0.00469318]
[1688265801939,12.9925,1924.2,1924.0,2.69221502]
[1688265807780,12.9925,1924.2,1924.1,2.68752184]
[1688265808642,12.9925,1924.2,1924.1,2.69203089]
[1688265810494,14.29175,1924.2,1924.1,0.00450905]
[1688265810863,5.19696,1924.2,1924.1,2.69203089]
[1688265811101,12.9924,1924.2,1924.1,3.17203089]
[1688265811402,12.9924,1924.2,1924.1,2.69203089]
[1688265824463,1.349,1924.6,1924.1,2.69203089]
[1688265824617,2.59821,1924.4,1924.2,2.68752184]
[1688265824816,12.99105,1924.4,1924.2,2.68752184]
[1688265825616,12.99105,1924.4,1924.3,0.00449125]
[1688265825858,12.99105,1924.4,1924.3,2.69201309]
[1688265834789,12.99105,1924.4,1924.3,0.00449125]
[1688265834939,14.549967,1924.4,1924.3,0.00449125]
[1688265835568,16.328267,1924.4,1924.3,0.00449125]
[1688265835884,16.328267,1924.4,1924.0,0.44287266]
[1688265836176,14.76935,1924.4,1924.1,2.68752184]
[1688265836752,14.76935,1924.4,1924.2,0.00450015]
[1688265837054,14.76935,1924.4,1924.2,2.69202199]
[1688265839943,14.74176802,1924.4,1924.2,2.69202199]
[1688265850199,14.74176802,1924.4,1924.3,2.68752184]
[1688265850200,10.39286,1924.4,1924.3,2.68752184]
[1688265850597,12.99107,1924.4,1924.3,2.68752184]
[1688265850797,12.99107,1924.4,1924.3,2.69201309]
[1688265854696,12.99107,1924.4,1924.3,0.00449125]
[1688265854914,14.290177,1924.4,1924.3,0.00449125]
[1688265855383,18.432777,1924.4,1924.3,0.00449125]
[1688265855585,18.432777,1924.4,1924.0,0.44287266]
[1688265855901,18.432777,1924.4,1924.1,2.68752184]
[1688265855902,17.13367,1924.4,1924.1,2.68752184]
[1688265856814,17.13367,1924.4,1924.2,0.00450015]
[1688265862882,22.33011,1924.4,1924.2,0.00450015]
[1688265863321,22.33011,1924.4,1923.6,0.42022395]
[1688265863490,1.349,1924.0,1923.7,2.68752184]
[1688265863696,12.99442,1923.9,1923.7,2.68752184]
[1688265863909,14.688649,1923.9,1923.7,2.68752184]
[1688265866126,1.357,1923.8,1923.3,1.5978]
[1688265866348,1.357,1923.8,1923.2,6.040253]
[1688265866349,16.94934,1923.7,1923.4,2.68752184]
[1688265866814,17.65725433,1923.7,1923.4,2.68752184]
[1688265867213,16.30325433,1923.7,1923.4,2.68752184]
[1688265867705,16.30325433,1923.7,1923.5,0.0040508]
[1688265867917,16.30325433,1923.7,1923.5,2.69157264]
[1688265868328,16.30325433,1923.7,1923.5,0.0040508]
[1688265868530,1.63032543,1923.6,1923.5,0.0040508]
[1688265868702,14.62677543,1923.6,1923.2,2.42612875]
[1688265868905,12.99645,1923.6,1923.3,2.68752184]
[1688265869697,12.99645,1923.6,1923.4,0.00405971]
[1688265869952,12.99645,1923.6,1923.4,2.69158155]
[1688265872117,12.99645,1923.6,1923.4,0.00405971]
[1688265872323,1.354,1923.5,1923.4,0.00405971]
[1688265872625,18.552065,1923.5,1923.0,5.20012]
[1688265872843,17.11702,1923.5,1923.1,2.68752184]
[1688265873766,17.11702,1923.5,1923.2,0.00407752]
[1688265874073,17.11702,1923.5,1923.2,2.69159936]
[1688265882431,17.11702,1923.5,1923.2,0.00407752]
[1688265882668,22.31587,1923.5,1923.0,0.01652172]
[1688265882871,19.608536,1923.5,1923.0,2.70404356]
[1688265883360,15.34052,1923.5,1923.1,2.68752184]
[1688265883775,15.34052,1923.5,1923.1,2.69160827]
[1688265885865,5.19885,1923.5,1923.1,2.69160827]
[1688265886171,5.19885,1923.5,1923.2,1.357]
[1688265886172,12.99712,1923.5,1923.2,1.357]
[1688265886372,12.99712,1923.5,1923.2,2.68752184]
[1688265886576,14.78682,1923.5,1923.2,2.68752184]
[1688265886763,14.78682,1923.5,1923.3,0.00406861]
[1688265886965,16.525441,1923.5,1923.3,0.00406861]
[1688265887874,16.525441,1923.5,1923.2,2.68752184]
[1688265888744,16.525441,1923.5,1923.3,0.00406861]
[1688265889646,16.525441,1923.5,1923.2,2.68752184]
[1688265889847,14.78682,1923.5,1923.2,2.68752184]
[1688265890669,14.78682,1923.5,1923.3,0.00406861]
[1688265891754,12.99712,1923.5,1923.4,2.68752184]
[1688265892759,12.99712,1923.5,1923.4,2.69158155]
[1688265921323,12.99712,1923.5,1923.4,0.00405971]
[1688265921482,14.735961,1923.5,1923.4,0.00405971]
[1688265921684,14.735961,1923.5,1923.2,1.357]
[1688265921899,14.735961,1923.5,1923.1,0.01652087]
[1688265922124,14.735961,1923.5,1923.1,2.70404271]
[1688265922922,14.735961,1923.5,1923.2,0.00407752]
[1688265923123,1.4735961,1923.4,1923.2,0.00407752]
[1688265923313,12.99847,1923.3,1923.2,0.00407752]
[1688265931124,10.39878,1923.3,1923.2,0.00407752]
[1688265931374,5.19897,1923.5,1923.2,1.36107752]
[1688265931495,7.48215,1923.5,1923.3,2.68752184]
[1688265931690,10.3978,1923.5,1923.3,2.68752184]
[1688265932006,12.99722,1923.5,1923.3,2.68752184]
[1688265932212,12.99722,1923.5,1923.2,0.00407752]
[1688265932389,10.39878,1923.3,1923.2,2.69159936]
[1688265933518,12.99847,1923.3,1923.2,2.69159936]
[1688265934422,12.99847,1923.3,1923.2,0.00407752]
[1688265934800,5.19939,1923.3,1923.2,2.69159936]
[1688265936300,10.39878,1923.3,1923.2,2.69159936]
[1688265937129,5.19939,1923.3,1923.2,2.69159936]
[1688265937430,10.39878,1923.3,1923.2,2.69159936]
[1688265939830,12.99847,1923.3,1923.2,2.69159936]
[1688265941030,14.298317,1923.3,1923.2,0.00407752]
[1688265941399,11.698627,1923.3,1923.2,0.00407752]
[1688265941599,14.298317,1923.3,1923.0,0.40753375]
[1688265942000,14.298317,1923.3,1922.9,3.89162284]
[1688265942211,14.298317,1923.3,1923.0,0.90355681]
[1688265942625,14.298317,1923.3,1923.1,0.00549829]
[1688265943645,14.298317,1923.3,1922.9,6.47016072]
[1688265943827,12.99847,1923.3,1923.0,0.90355843]
[1688265944620,12.99847,1923.3,1923.1,0.00549829]
[1688265945839,12.99847,1923.3,1922.9,12.20524356]
[1688265946027,12.99847,1923.3,1923.0,0.90355852]
[1688265946719,12.99847,1923.3,1923.1,0.00549829]
[1688265946917,14.470427,1923.3,1923.1,0.00549829]
[1688265947737,14.470427,1923.3,1922.9,11.67062072]
[1688265947930,12.99847,1923.3,1923.0,0.90356049]
[1688265948626,12.99847,1923.3,1923.1,0.00549829]
[1688265949751,12.99847,1923.3,1922.9,11.67062072]
[1688265949913,12.99847,1923.3,1923.0,0.90355987]
[1688265950606,12.99847,1923.3,1923.1,0.00549829]
[1688265950916,14.470427,1923.3,1923.1,0.00549829]
[1688265951127,16.709227,1923.3,1923.1,0.00549829]
[1688265951704,16.709227,1923.3,1922.9,5.11316072]
[1688265952735,16.709227,1923.3,1923.0,0.00550727]
[1688265957566,15.23727,1923.3,1923.0,0.00550727]
[1688265959401,12.99847,1923.3,1923.1,2.68752184]
[1688265959534,1.354,1923.6,1923.2,1.357]
[1688265959535,5.19874,1923.6,1923.2,1.357]
[1688265959746,10.39748,1923.6,1923.3,4.04452184]
[1688265960869,12.99677,1923.6,1923.3,4.04452184]
[1688265961852,12.99677,1923.6,1923.3,2.68752184]
[1688265963679,12.99677,1923.6,1923.4,0.00550577]
[1688265964759,12.99677,1923.6,1923.3,2.68752184]
[1688265965669,12.99677,1923.6,1923.4,0.00550577]
[1688265966688,12.99677,1923.6,1923.3,2.68752184]
[1688265967687,12.99677,1923.6,1923.4,0.00550577]
[1688265968656,12.99677,1923.6,1923.3,2.68752184]
[1688265969699,12.99677,1923.6,1923.4,0.00550577]
[1688265970688,12.99677,1923.6,1923.3,2.68752184]
[1688265971773,12.99677,1923.6,1923.4,0.00550577]
[1688265972763,12.99677,1923.6,1923.3,2.68752184]
[1688265973265,12.99677,1923.6,1923.3,3.11206947]
[1688265973698,12.99677,1923.6,1923.4,0.00550577]
[1688265974806,12.99677,1923.6,1923.3,3.11206947]
[1688265975701,12.99677,1923.6,1923.4,0.00550577]
[1688265976703,12.99677,1923.6,1923.3,3.11206947]
[1688265977707,4.1662,1923.8,1923.4,1.36250577]
[1688265978004,4.1662,1923.8,1923.5,4.04452184]
[1688265978005,10.39626,1923.8,1923.5,4.04452184]
[1688265978701,10.39626,1923.8,1923.6,0.00548781]
[1688265978889,10.39626,1923.8,1923.6,2.69300965]
[1688265980474,10.39626,1923.8,1923.6,3.09801062]
[1688265983975,5.19787,1923.9,1923.7,2.68752184]
[1688265984407,10.39575,1923.9,1923.7,2.68752184]
[1688265984904,10.39575,1923.9,1923.8,0.00547088]
[1688265989891,12.99463,1923.9,1923.8,0.00547088]
[1688265994244,9.35348,1924.0,1923.8,2.69299272]
[1688265994538,10.39525,1924.0,1923.8,2.96229199]
[1688265995096,4.1964,1924.2,1923.9,2.68752184]
[1688265995295,5.19727,1924.1,1923.9,2.68752184]
[1688265995545,10.39454,1924.1,1924.0,0.26875218]
[1688265995753,10.39454,1924.1,1924.0,2.96172695]
[1688266000334,10.39454,1924.1,1924.0,2.69297477]
[1688266003432,5.19727,1924.1,1924.0,2.69297477]
[1688266003747,6.93874,1924.3,1924.0,2.69297477]
[1688266003958,5.19699,1924.2,1924.1,2.68752184]
[1688266004609,5.19699,1924.2,1924.1,2.6929658]
[1688266004813,5.19699,1924.2,1924.1,4.00175038]
[1688266011681,5.19699,1924.2,1924.1,9.19898038]
[1688266011816,3.95501,1924.6,1924.1,9.19898038]
[1688266011817,7.0036,1924.6,1924.3,2.0]
[1688266012019,12.8474876,1924.7,1924.4,2.68752184]
[1688266012254,14.6550876,1924.7,1924.4,2.68752184]
[1688266012452,9.4592476,1924.7,1924.4,2.68752184]
[1688266012767,9.4592476,1924.7,1924.5,0.00541266]
[1688266013065,9.4592476,1924.7,1924.5,2.6929345]
[1688266013639,14.6550476,1924.7,1924.5,2.6929345]
[1688266014657,14.5550476,1924.7,1924.5,2.6929345]
[1688266015861,17.1528476,1924.7,1924.5,2.6929345]
[1688266016026,17.1528476,1924.7,1924.5,3.48185895]
[1688266017538,5.2450476,1924.7,1924.6,2.68752184]
[1688266017842,10.4408476,1924.7,1924.6,2.68752184]
[1688266018669,10.4408476,1924.7,1924.6,2.69292871]
[1688266018957,13.0386476,1924.7,1924.6,0.00540687]
[1688266019137,14.7625476,1924.7,1924.6,0.00540687]
[1688266019677,14.7625476,1924.7,1924.3,7.19664]
[1688266019969,14.7625476,1924.7,1924.4,3.40718584]
[1688266022749,14.7625476,1924.7,1924.5,0.00541929]
[1688266028809,14.7625476,1924.7,1924.4,7.83933113]
[1688266029777,14.7625476,1924.7,1924.5,0.00521086]
[1688266030700,14.7625476,1924.7,1924.3,2.41062273]
[1688266030900,16.63386936,1924.7,1924.3,5.09814457]
[1688266031264,16.63386936,1924.7,1924.3,2.41062273]
[1688266031692,16.63386936,1924.7,1924.4,0.0052203]
[1688266032706,16.63386936,1924.7,1924.3,2.41062273]
[1688266032914,16.63386936,1924.7,1924.3,7.60731273]
[1688266033714,16.63386936,1924.7,1924.4,0.0052203]
[1688266034065,1.66338694,1924.6,1924.4,0.0052203]
[1688266034261,10.3923,1924.5,1924.4,0.0052203]
[1688266034815,10.3923,1924.5,1924.3,7.60731273]
[1688266035719,10.3923,1924.5,1924.4,0.0052203]
[1688266036914,10.3923,1924.5,1924.3,7.60731273]
[1688266037115,5.19615,1924.5,1924.3,7.60731273]
[1688266037675,5.19615,1924.5,1924.4,0.0052203]
[1688266038791,5.19615,1924.5,1924.3,7.60731273]
[1688266039710,5.19615,1924.5,1924.4,0.0052203]
[1688266040952,5.19615,1924.5,1924.3,7.60731273]
[1688266041758,5.14615,1924.5,1924.4,0.0052203]
[1688266042770,5.14615,1924.5,1924.3,7.60731273]
[1688266042913,5.14615,1924.5,1924.3,12.80391273]
[1688266043744,5.14615,1924.5,1924.4,0.0052203]
[1688266044854,5.14615,1924.5,1924.3,7.60722273]
[1688266045813,5.14615,1924.5,1924.4,0.0052203]
[1688266046827,5.14615,1924.5,1924.3,2.41062273]
[1688266047224,12.94037,1924.5,1924.3,0.41062273]
[1688266047617,12.94037,1924.5,1924.2,5.21346142]
[1688266047958,14.68317,1924.5,1924.4,0.0052203]
[1688266048654,14.68317,1924.5,1924.2,13.09786326]
[1688266048842,14.68317,1924.5,1924.2,13.50513833]
[1688266049157,14.68317,1924.5,1924.2,8.30818833]
[1688266049819,14.68317,1924.5,1924.3,0.00522927]
[1688266051356,0.0492876,1924.7,1924.4,2.68752184]
[1688266051558,5.2449176,1924.7,1924.4,13.08003184]
[1688266051732,10.4405476,1924.7,1924.5,0.00521133]
[1688266052065,10.4405476,1924.7,1924.6,2.68752184]
[1688266052855,10.4405476,1924.7,1924.6,2.6927242]
[1688266055057,13.0383476,1924.7,1924.6,2.6927242]
[1688266055940,0.0492876,1924.7,1924.6,2.6927242]
[1688266056257,10.4405076,1924.7,1924.6,2.96199662]
[1688266056457,10.4405076,1924.7,1924.6,2.6927242]
[1688266058472,13.0383076,1924.7,1924.6,2.6927242]
[1688266066184,10.4405076,1924.7,1924.6,2.6927242]
[1688266068793,13.0383076,1924.7,1924.6,2.6927242]
[1688266076861,10.4405076,1924.7,1924.6,2.6927242]
[1688266079105,10.3905076,1924.7,1924.6,2.6927242]
[1688266082112,12.9883076,1924.7,1924.6,2.6927242]
[1688266098010,9.56683,1924.8,1924.6,2.6927242]
[1688266098192,2.6,1924.8,1924.6,2.6927242]
[1688266098819,7.79543,1924.8,1924.6,2.6927242]
[1688266099396,12.99086,1924.8,1924.6,2.6927242]
[1688266100584,12.99086,1924.8,1924.6,3.48160062]
[1688266105432,12.99086,1924.8,1924.6,8.67745062]
[1688266109447,12.99086,1924.8,1924.6,3.48160062]
[1688266110420,12.99086,1924.8,1924.6,3.89293458]
[1688266114141,15.58853,1924.8,1924.6,3.89293458]
[1688266125702,15.58853,1924.8,1924.6,3.10405816]
[1688266126028,15.58853,1924.8,1924.6,2.6927242]
[1688266127191,15.58853,1924.8,1924.6,0.00520236]
[1688266127718,15.58853,1924.8,1924.3,2.42284459]
[1688266127883,4.1062,1924.7,1924.4,2.68752184]
[1688266128081,10.39176,1924.6,1924.4,2.68752184]
[1688266128675,10.39176,1924.6,1924.5,0.00521133]
[1688266145743,12.9897,1924.6,1924.5,0.00521133]
[1688266146771,12.9897,1924.6,1924.3,2.42284459]
[1688266147158,12.9897,1924.6,1924.3,0.42284459]
[1688266147361,16.04829,1924.6,1923.9,32.38]
[1688266147572,16.04829,1924.6,1924.0,2.68752184]
[1688266147573,14.69929,1924.6,1924.0,2.68752184]
[1688266147734,14.69929,1924.6,1924.0,2.69277803]
[1688266148183,12.99137,1924.4,1924.0,2.69277803]
[1688266148477,14.96247,1924.4,1924.0,2.69277803]
[1688266148978,1.346,1924.3,1924.0,0.00525619]
[1688266149133,12.99307,1924.1,1924.0,0.00525619]
[1688266149734,12.99307,1924.1,1923.7,2.0]
[1688266149976,17.13197,1924.1,1923.8,2.68752184]
[1688266150484,19.240319,1924.1,1923.8,2.68752184]
[1688266150684,16.641709,1924.1,1923.8,2.68752184]
[1688266150976,16.641709,1924.1,1923.9,0.00505582]
[1688266150977,19.240319,1924.1,1923.9,0.00505582]
[1688266151834,19.240319,1924.1,1923.8,2.68752184]
[1688266152760,19.240319,1924.1,1923.9,0.00505526]
[1688266153349,17.13197,1924.1,1923.9,0.00505526]
[1688266153763,17.13197,1924.1,1923.8,2.68752184]
[1688266154778,17.13197,1924.1,1923.9,0.00505526]
[1688266155894,17.13197,1924.1,1923.8,2.68752184]
[1688266156782,17.13197,1924.1,1923.9,0.00505526]
[1688266157768,17.13197,1924.1,1923.8,2.68752184]
[1688266157965,17.13197,1924.1,1923.8,7.88552184]
[1688266158883,17.13197,1924.1,1923.9,0.00505526]
[1688266159784,17.13197,1924.1,1923.8,7.88552184]
[1688266159986,17.13197,1924.1,1923.8,2.68752184]
[1688266160808,17.13197,1924.1,1923.9,0.00505526]
[1688266161804,17.13197,1924.1,1923.8,2.68752184]
[1688266162102,17.13197,1924.1,1923.7,2.42534462]